Cogmind - Beta 14 @@@ ROGUE MODE // 2024.11.24 @ 18:51:26 Player: KURIIRI Result: Self-destructed Performance ------------- Evolutions (2) 1000 Regions Visited (5) 1000 Robots Destroyed (42) 210 Value Destroyed (1022) 1022 Prototype IDs (32) 640 Alien Tech Used (0) 0 Bonus (315) 315 TOTAL SCORE: 4187 Bonus ------- Follower Combat Kills 152 Aligned with FarCom 300 Friendly Fire -137 Cogmind --------- Core Integrity 480/550 Matter 300/300 Energy 280/280 System Corruption 0% Temperature Cool (0) Movement Treading (152) Location -8/Materials Parts ------- > --- POWER (1) -------- Heavy Ion Engine > --- PROPULSION (3) --- Light Treads Advanced Treads > --- UTILITY (5) ------ Improved Heat Sink Improved Heat Sink Large Storage Unit Improved Terrain Scanner Light Armor Plating > --- WEAPON (2) ------- Heavy EM Shotgun Medium Laser > --- INVENTORY (15) --- Heavy Ion Engine Fission Core Light Fission Core Light Treads Light Treads Light Treads Medium Storage Unit Superbattery (1500) Hacking Suite Hacking Suite Medium Laser Missile Launcher Datajack Hammer Peak State ------------ > --- POWER ------------ Heavy Ion Engine > --- PROPULSION ------- Light Treads Light Treads Advanced Treads > --- UTILITY ---------- Improved Heat Sink Improved Heat Sink Large Storage Unit Improved Terrain Scanner Medium Armor Plating > --- WEAPON ----------- Heavy EM Shotgun Medium Laser > --- INVENTORY -------- Heavy Ion Engine Fission Core Light Fission Core Light Treads Light Treads Light Treads Medium Storage Unit Superbattery Light Armor Plating Hacking Suite Hacking Suite Medium Laser Missile Launcher Datajack Hammer [Rating: 29] Favorites ----------- Power Ion Engine Engine Ion Engine Propulsion Light Treads Treads Light Treads Utility Large Storage Unit Device Terrain Scanner Storage Large Storage Unit Protection Propulsion Shielding Weapon Medium Laser Energy Gun Medium Laser Ballistic Gun Light Assault Rifle Special Weapon Mining Laser Special Melee Weapon Datajack Build | -11 -10 -10 -10 -9 -8 ------- Run | Yrd Mat Min Exi Min Mat Slots Evolved 4 | . . . . . 4 Power . | . . . . . . Propulsion 1 | . . . . . 1 Utility 3 | . . . . . 3 Weapon . | . . . . . . Parts Attached 35 | 6 13 . 5 . 11 Power 4 | 1 1 . 1 . 1 Engine 4 | 1 1 . 1 . 1 Core . | . . . . . . Reactor . | . . . . . . Propulsion 7 | 2 3 . . . 2 Treads 7 | 2 3 . . . 2 Leg . | . . . . . . Wheel . | . . . . . . Hover . | . . . . . . Flight . | . . . . . . Utility 12 | 1 4 . . . 7 Device 5 | . 1 . . . 4 Storage 3 | 1 2 . . . . Processor . | . . . . . . Hackware . | . . . . . . Protection 4 | . 1 . . . 3 Artifact . | . . . . . . Weapon 12 | 2 5 . 4 . 1 Energy Gun 8 | . 4 . 3 . 1 Energy Cannon . | . . . . . . Ballistic Gun 2 | 2 . . . . . Ballistic Cannon . | . . . . . . Launcher . | . . . . . . Special Weapon 1 | . 1 . . . . Impact Weapon . | . . . . . . Slashing Weapon . | . . . . . . Piercing Weapon . | . . . . . . Special Melee Weapon 1 | . . . 1 . . Unidentified Prototypes 2 | . . . . . 2 Parts Lost 6 | . 3 1 . . 2 Power 1 | . 1 . . . . Propulsion 2 | . 1 . . . 1 Utility 2 | . 1 . . . 1 Weapon 1 | . . 1 . . . Highest Loss Streak 2 | . 2 1 . . 1 To Critical Strikes . | . . . . . . Average Slot Usage (%) 94 | . 99 89 85 100 91 Engine 13 | . 13 14 14 14 9 Treads 27 | . 28 28 28 28 25 Device 9 | . 13 . . . 21 Storage 13 | . 14 14 14 14 9 Protection 6 | . . 14 14 14 8 Energy Gun 20 | . 25 17 8 28 18 Peak Build Rating 29 | 6 8 8 10 10 29 Average Rating 10 | 4 7 7 8 10 22 On Entrance 6 | . 6 8 7 10 10 Naked Turns . | . . . . . . Heaviest Build 44 | 12 30 30 30 30 44 Greatest Support 62 | 40 40 40 40 40 62 Greatest Overweight (x) 1 | . 1 . . . . Average Overweight (x) . | . . . . . . Largest Inventory Capacity 15 | 8 15 15 15 15 15 Average Capacity 14 | 6 14 15 15 15 15 Most Carried 15 | 2 12 10 14 13 15 Average Carried 10 | 1 8 10 13 13 14 Final Capacity 15 | 8 15 15 15 15 15 Final Carried 14 | 2 10 10 13 13 14 Class Distribution -------------------- 58% | Mutant 27% | Commander-Mutant 8% | Skirmisher Dominant Class ---------------- Mutant | -10/Materials Commander-Mutant | -10/Mines Commander-Mutant | -10/Exiles Mutant | -9/Mines Skirmisher | -8/Materials Resources | -11 -10 -10 -10 -9 -8 ----------- Run | Yrd Mat Min Exi Min Mat Matter Collected 595 | 239 186 10 . 40 120 Remotely . | . . . . . . Salvage Created 1365 | . 682 150 . 40 493 Parts 58 | . 29 9 . 2 18 Haulers Intercepted 2 | . 2 . . . . Recyclers Shooed . | . . . . . . Parts Field Recycled . | . . . . . . Retrieved Matter . | . . . . . . Parts Self-Destructed . | . . . . . . Prevented . | . . . . . . Kills | -11 -10 -10 -10 -9 -8 ------- Run | Yrd Mat Min Exi Min Mat Combat Hostiles Destroyed 31 | . 14 6 . 3 8 Melee 1 | . 1 . . . . Guns 28 | . 13 6 . 3 6 AOE 1 | . . . . . 1 Classes Destroyed 11 | . 5 2 . . 4 Worker 2 | . . 1 . . 1 Tunneler 1 | . . . . . 1 Hauler 2 | . 2 . . . . Recycler 1 | . . 1 . . . Operator 1 | . 1 . . . . Watcher 3 | . 3 . . . . Swarmer 11 | . 3 5 . 3 . Grunt 18 | . 11 1 . . 6 Duelist 1 | . . . . . 1 Sentry 1 | . . . . . 1 Hunter 1 | . . . . . 1 Best Kill Streak 4 | . 4 3 . 3 3 Combat Bots Only 3 | . 3 3 . 3 3 Max Kills in Single Turn 2 | . 1 1 . 2 2 Gunslinging 1 | . . . . 1 . Exploded 1 | . . . . . 1 Melee 1 | . 1 . . . . Uniques/NPCs Destroyed . | . . . . . . Combat | -11 -10 -10 -10 -9 -8 -------- Run | Yrd Mat Min Exi Min Mat Hostile Shots Fired 153 | . 78 26 . 2 47 Missed 29 | . 14 5 . 1 9 Damage Taken 1530 | . 771 167 . 18 574 Core 249 | . 145 26 . 8 70 Absorbed by Shields . | . . . . . . Redirected to Shielding 41 | . . 16 . . 25 Core Remaining (%) 64 | 100 . . . 28 . Volleys Fired 123 | . 62 12 . 3 46 Largest 2 | . 2 2 . 2 2 Hottest 100 | . 100 100 . 100 100 Shots Fired 236 | . 120 20 . 6 90 Gun 234 | . 118 20 . 6 90 Cannon . | . . . . . . Launcher . | . . . . . . Special 2 | . 2 . . . . Kinetic . | . . . . . . Thermal 211 | . 120 20 . 6 65 Explosive . | . . . . . . Electromagnetic 25 | . . . . . 25 Robot Hit Streak 18 | . 18 7 . 2 14 Robot Miss Streak 3 | . 3 3 . 2 2 Penetration Max . | . . . . . . Secondary Targets 8 | . 4 1 . 1 2 Max Gunslinging Chain 1 | . 1 1 . 1 1 Shots Hit Robots 179 | . 84 13 4 3 75 Core Hits 78 | . 36 8 . 4 30 Critical Kills . | . . . . . . Critical Parts Destroyed . | . . . . . . Critical Strikes 17 | . 8 1 . 1 7 Burn 17 | . 8 1 . 1 7 Melee Attacks 4 | . . . 4 . . Impact . | . . . . . . Slashing . | . . . . . . Piercing . | . . . . . . Sneak Attacks 4 | . . . 4 . . Combat Hostiles . | . . . . . . Follow-up Attacks . | . . . . . . Damage Inflicted 2604 | . 1081 184 . 63 1276 Guns 2435 | . 1062 173 . 63 1137 Cannons . | . . . . . . Explosions 126 | . . . . . 126 Melee . | . . . . . . Ramming 43 | . 19 11 . . 13 Kinetic . | . . . . . . Thermal 2098 | . 1062 173 . 63 800 Explosive . | . . . . . . Electromagnetic 463 | . . . . . 463 Impact . | . . . . . . Slashing . | . . . . . . Piercing . | . . . . . . Highest Corruption . | . . . . . . Average Corruption . | . . . . . . Corruption Purged . | . . . . . . Corruption Blocked . | . . . . . . Overload Shots . | . . . . . . Overflow Damage 2 | . . . . . 2 Projectiles . | . . . . . . Explosions 2 | . . . . . 2 Melee . | . . . . . . Knockbacks . | . . . . . . Impact . | . . . . . . Kinetic . | . . . . . . Secondary . | . . . . . . Self-Inflicted Damage . | . . . . . . Shots . | . . . . . . Rammed 13 | . 10 . . . 3 Targets Rammed 16 | . 11 2 . . 3 Kicked . | . . . . . . Crushed 3 | . 1 2 . . . Highest Temperature 477 | . 477 217 . 117 111 Average Temperature 135 | . 154 82 . 59 44 Received Heat Transfer 732 | . 456 6 . . 270 Effects 7 | . 7 . . . . Shutdowns 1 | . 1 . . . . Energy Bleed 1 | . 1 . . . . Interference 4 | . 4 . . . . Matter Decay 1 | . 1 . . . . Siege Activations . | . . . . . . Robots Corrupted . | . . . . . . Combat Hostiles . | . . . . . . Parts Fried 2 | . . . . . 2 Impact Corruptions . | . . . . . . Robots Melted 1 | . . . . . 1 Combat Hostiles 1 | . . . . . 1 Parts Melted 17 | . 11 1 . 1 4 Heat Transferred 7180 | . 3700 555 . 259 2666 Parts Sabotaged . | . . . . . . Parts Stolen . | . . . . . . Parts Stripped . | . . . . . . Power Chain Reactions 2 | . . . . . 2 Alert | -11 -10 -10 -10 -9 -8 ------- Run | Yrd Mat Min Exi Min Mat Peak Influence 316 | . 213 224 . 81 316 Initial 31 | . . 28 . . 31 Average 103 | . 88 97 . 31 179 Maximum Alert Level 1 | . 1 1 . . 1 Low Security (%) 89 | 100 99 94 . 100 52 Level 1 10 | . . 5 . . 47 Level 2 . | . . . . . . Level 3 . | . . . . . . Level 4 . | . . . . . . Level 5 . | . . . . . . High Security . | . . . . . . Max Security . | . . . . . . Squads Dispatched 9 | . 3 . . . 6 Investigation 3 | . 2 . . . 1 Extermination . | . . . . . . Reinforcement 4 | . 1 . . . 3 Assault . | . . . . . . Garrison 2 | . . . . . 2 Intercept . | . . . . . . Searches Triggered . | . . . . . . Construction Impeded 2 | . . . . . 2 Haulers Reinforced . | . . . . . . Active Scanning Responses . | . . . . . . Cargo Convoy Interrupts . | . . . . . . Stealth | -11 -10 -10 -10 -9 -8 --------- Run | Yrd Mat Min Exi Min Mat Distress Signals 1 | . 1 . . . . Communications Jammed . | . . . . . . Distress Signals . | . . . . . . Times Spotted 48 | . 21 8 . 4 15 Peak Tracking Total 5 | . 3 3 . 4 5 Tactical Retreats 3 | . . 1 . . 2 Traps | -11 -10 -10 -10 -9 -8 ------- Run | Yrd Mat Min Exi Min Mat Traps Triggered 1 | . 1 . . . . Indirectly . | . . . . . . Trap Hack Attempts . | . . . . . . Triggered . | . . . . . . Disarmed . | . . . . . . Reprogrammed . | . . . . . . Reused . | . . . . . . Traps Extracted . | . . . . . . Installed . | . . . . . . Triggered . | . . . . . . Machines | -11 -10 -10 -10 -9 -8 ---------- Run | Yrd Mat Min Exi Min Mat Machines Disabled . | . . . . . . Max in Single Turn . | . . . . . . Machines Repaired . | . . . . . . Machines Dismantled . | . . . . . . Machines Sabotaged . | . . . . . . Overloaded Fab Kills . | . . . . . . Hacking | -11 -10 -10 -10 -9 -8 --------- Run | Yrd Mat Min Exi Min Mat Machines Accessed 13 | . 9 . 2 . 2 Terminals 8 | . 7 . . . 1 Fabricators . | . . . . . . Repair Stations . | . . . . . . Recycling Units 3 | . 2 . . . 1 Scanalyzers . | . . . . . . Garrison Access . | . . . . . . Total Hacks 60 | . 30 . 24 . 6 Successful 46 | . 19 . 24 . 3 Failed 13 | . 10 . . . 3 Catastrophic 2 | . 1 . . . 1 Database Lockouts 1 | . 1 . . . . Manual 33 | . 26 . 1 . 6 Terminals 33 | . 28 . . . 5 Fabricators . | . . . . . . Repair Stations . | . . . . . . Recycling Units 3 | . 2 . . . 1 Scanalyzers . | . . . . . . Garrison Access . | . . . . . . Terminal Hacks 32 | . 7 . 24 . 1 Record 23 | . . . 23 . . Robot Analysis 3 | . 3 . . . . Prototype ID Bank 2 | . 2 . . . . Terminal Index 1 | . . . . . 1 Alert Level 2 | . 2 . . . . Derelict Proto ID Bank 1 | . . . 1 . . Fabricator Hacks . | . . . . . . Repair Station Hacks . | . . . . . . Recycling Unit Hacks . | . . . . . . Scanalyzer . | . . . . . . Garrison Access Hacks . | . . . . . . Unauthorized Hacks 14 | . 12 . . . 2 Terminals 11 | . 10 . . . 1 Track 1 | . 1 . . . . Assimilate 1 | . 1 . . . . Botnet 2 | . 2 . . . . Operators 1 | . 1 . . . . Skim 6 | . 5 . . . 1 Fabricators . | . . . . . . Repair Stations . | . . . . . . Recycling Units 3 | . 2 . . . 1 Tunnel 3 | . 2 . . . 1 Scanalyzers . | . . . . . . Garrison Access . | . . . . . . Data Cores Recovered . | . . . . . . Used . | . . . . . . Hacking Detections 7 | . 6 . . . 1 Full Trace Events . | . . . . . . Feedback Events . | . . . . . . Feedback Blocked . | . . . . . . Robot Schematics Acquired . | . . . . . . Robots Built . | . . . . . . Authchips . | . . . . . . Time . | . . . . . . Total Robot Build Rating . | . . . . . . Part Schematics Acquired . | . . . . . . Parts Built . | . . . . . . Authchips . | . . . . . . Time . | . . . . . . Total Part Build Rating . | . . . . . . Parts Repaired . | . . . . . . Time . | . . . . . . Parts Recycled . | . . . . . . Recycled Matter . | . . . . . . Retrieved Matter . | . . . . . . Retrieved Components . | . . . . . . Parts Scanalyzed . | . . . . . . Part Schematics Acquired . | . . . . . . Parts Damaged . | . . . . . . Bothacking | -11 -10 -10 -10 -9 -8 ------------ Run | Yrd Mat Min Exi Min Mat Used RIF Installer . | . . . . . . Robots Hacked 3 | . . . 3 . . Non-combat 2 | . . . 2 . . Combat 1 | . . . 1 . . Robot Hacks Applied 4 | . . . 4 . . parse_system 4 | . . . 4 . . Relay Couplers Released . | . . . . . . Fabnet Peak Effective % . | . . . . . . Robots Rewired . | . . . . . . Allies Hacked . | . . . . . . Hacks Repelled . | . . . . . . Allies | -11 -10 -10 -10 -9 -8 -------- Run | Yrd Mat Min Exi Min Mat Total Allies 4 | . 1 3 . . . Largest Group 4 | . 1 4 4 4 3 Highest-Rated Group 50 | . 10 50 50 50 42 Highest-Rated Ally 16 | . 10 16 16 16 16 Total Orders 6 | . 2 . . . 4 STAY 3 | . 1 . . . 2 FOLLOW 3 | . 1 . . . 2 Ally Attacks 39 | . . 2 . 6 31 Total Damage 425 | . . 12 . 61 352 Kills 6 | . . 1 . 1 4 Allies Corrupted . | . . . . . . Allies Melted . | . . . . . . Intel | -11 -10 -10 -10 -9 -8 ------- Run | Yrd Mat Min Exi Min Mat Robot Analysis Total 3 | . 3 . . . . Derelict Logs Recovered . | . . . . . . Drone Launches . | . . . . . . Drone Recoveries . | . . . . . . Exploration | -11 -10 -10 -10 -9 -8 ------------- Run | Yrd Mat Min Exi Min Mat Turns Passed 3129 | 95 1442 526 464 66 536 Spaces Moved 1473 | 55 577 306 279 36 220 Core 3 | 3 . . . . . Treads 1470 | 52 577 306 279 36 220 Legs . | . . . . . . Wheels . | . . . . . . Hover . | . . . . . . Flight . | . . . . . . Fastest Speed 50 | 50 160 160 160 160 152 Average Speed 159 | 154 160 160 160 160 155 Slowest Speed 240 | 160 240 160 160 160 160 Overloaded Moves . | . . . . . . Propulsion Burnouts . | . . . . . . Robots Hopped . | . . . . . . Cave-ins Triggered . | . . . . . . Exploration Rate (%) 43 | 4 89 75 59 15 17 Regions Visited 5 Branch Regions 3 Pre-discovered Areas 5 | . 2 1 1 . 1 Known Exits Taken . | . . . . . . Unknown Exits Taken 5 | 1 1 1 1 1 . Scrap Searched 1 | . . 1 . . . Spaces Dug 2 | . 2 . . . . Terrain Destroyed 19 | . 2 . . . 17 Melee . | . . . . . . Projectile 2 | . 2 . . . . AOE 17 | . . . . . 17 Terrain Rammed . | . . . . . . Walls Destroyed . | . . . . . . Machines Disabled . | . . . . . . Actions | -11 -10 -10 -10 -9 -8 --------- Run | Yrd Mat Min Exi Min Mat Total 1996 | 62 961 321 293 39 320 Wait 326 | . 287 2 2 1 34 Move 1468 | 54 576 305 278 35 220 Hop . | . . . . . . Pick Up 19 | 2 10 . 4 . 3 Fast Attach 15 | 6 5 . . . 4 Attach 5 | . 3 . 1 . 1 Detach . | . . . . . . Swap 15 | . 5 . 4 . 6 Drop 5 | . 2 . . . 3 Fire 123 | . 62 12 . 3 46 Melee 4 | . . . 4 . . Ram . | . . . . . . Kick . | . . . . . . Crush 16 | . 11 2 . . 3 Escape Stasis . | . . . . . . Rewire . | . . . . . . Trap . | . . . . . . Miscellaneous . | . . . . . . Route ------- -11/Scrapyard -10/Materials (discovered 6 exits: *Mat x3 / [*Min x2] / Sub) -10/Mines (discovered 3 exits: *Mat x2 / *Exi) -10/Exiles -9/Mines -8/Materials (discovered 1 exit: Fac) History --------- Turn | Location | Event 6 | -11/Scrapyard | Discovered new exit (range 16) 96 | -11/Scrapyard | Entered Materials 310 | -10/Materials | Build established: Mutant 466 | -10/Materials | Central database locked down 483 | -10/Materials | Discovered new exit (range 15) 591 | -10/Materials | Discovered new exit (range 8) 697 | -10/Materials | Discovered new exit (range 14) 762 | -10/Materials | Discovered new exit (range 15) 917 | -10/Materials | Learned 2 Storage zone layouts 977 | -10/Materials | Learned Storage trap positions 1026 | -10/Materials | Learned Recycling recycling unit intel 1063 | -10/Materials | Identified exit to Subcaves 1088 | -10/Materials | Identified exit to Materials 1088 | -10/Materials | Learned location of 1 exit from Materials 1103 | -10/Materials | Learned Storage stockpile data 1206 | -10/Materials | Learned 4 Recycling zone layouts 1479 | -10/Materials | Core integrity fell below 50% 1538 | -10/Materials | Entered Mines 1538 | -10/Mines | Accompanied by 1 ally 1539 | -10/Mines | Learned location of Storage (-7) 1555 | -10/Mines | Met a Derelict bent on vengeance 1699 | -10/Mines | Assisted by bots powering up and referring to "LRC-V3" 1765 | -10/Mines | Discovered exit to Materials (range 13) 1894 | -10/Mines | Discovered exit to Materials (range 8) 1993 | -10/Mines | Build established: Commander-Mutant 2056 | -10/Mines | Deemed a non-threat by the Exiles lab entrance 2057 | -10/Mines | Discovered new exit (range 5) 2064 | -10/Mines | Entered Exiles 2064 | -10/Exiles | Accompanied by 4 allies 2107 | -10/Exiles | Met 8R-AWN 2133 | -10/Exiles | Met EX-HEX 2176 | -10/Exiles | Met EX-BIN 2195 | -10/Exiles | Aligned with FarCom system 2197 | -10/Exiles | Given EX-Vault access code 2234 | -10/Exiles | Opened EX-Vault 2242 | -10/Exiles | Found Superbattery 2275 | -10/Exiles | Warned to stay clear of 0b10 Research branches 2433 | -10/Exiles | Met EX-DEC 2439 | -10/Exiles | Learned location of Zion (-7) 2492 | -10/Exiles | Discovered new exit (range 14) 2528 | -10/Exiles | Left Exiles lab with Superbattery 2528 | -10/Exiles | Entered Mines 2528 | -9/Mines | Accompanied by 4 allies 2582 | -9/Mines | Discovered new exit (range 5) 2594 | -9/Mines | Entered Materials 2594 | -8/Materials | Accompanied by 3 allies 2594 | -8/Materials | Evolved 4 slots: Propulsion x1, Utility x3 2595 | -8/Materials | Identified exit to Factory 2987 | -8/Materials | Garrison activated, responded to threat 3130 | -8/Materials | Self-destructed Last Messages --------------- 03056_ U-05 Engineer builds a Door. 03057_ Acquired 10 matter. 03067_ Critical hit (Burn: +37). 03071_ Lgt. Treads destroyed. 03075_ G-47 Trooper misfires. 03083_ Chain reaction triggered in Lgt. Nuclear Core. 03083_ Particle Gun fried. 03083_ G-47 Trooper destroyed. 03083_ Trooper 1a destroyed. 03106_ U-05 Engineer lays Concrete. 03109_ U-05 Engineer builds a Wall. 03113_ K-01 Serf collects debris. 03114_ U-05 Engineer builds a Wall. 03122_ U-05 Engineer lays Concrete. 03123_ U-05 Engineer builds a Wall. 03126_ Slammed into U-05 Engineer. 03127_ ALERT: Construction progress impeded, dispatching reinforcements to local area. 03128_ K-01 Serf collects debris. Map ----- +----------------------------------------------------+ | | | | | | | | | | | | | | | | | | | | | | | | | | | ???????????????#?????????#????#?????#?#?????##???? | | ????????????????????????#?##??###???#????#????#??# | | ?????????????????????????? #????????????#??# | | ????????????????#??#?#?# """ """ #????????###?#??# | | ??###?????????#???????## """ """ #???"?"??# ###### | | ??# #?????????????????# """ """ #?? ????#! !# | | ??? ?????????????????# #? ??????# # | | #### ##????##########??? +???? ### = # | | #????# #?????? [ % #????????# = # | | ###### """ ##?? ? ?? ####+##### = # | | + """ ###########+### ### # | | ####+####### """ # %#######+## | | #?# + @k % T = *=% % | | % ! #?# # %%=uu % %########## | | """ #?# "Y" ####%########## ####????## | | """"" #?# """ ####%###??????### #########??# | | """"" #?# ###; " ##?#????##%# ]#??? | | """"" #?########### ; "######??#?# + """ #??? | | """ #???????????### ##??????#??#=# """ = #??? | | ?! #??#??????????# #????##??#?#*# """ #??? | | ####????##??????#??#???# #???????#??#%# !#?#? | | ???????????????#######?# #??????????#[#########??? | | ???????????????# ?# #?#????????#!#?????????#? | | ??????????#???## %! # #??#???????#[# ? ???????? | | ???????????????# != # #??????????#=# ???" ????? | | ???????????????# + #??# ?????# #??????????? | | ???????????????# # #??# ? ????# ?????? ???#? | | ???????????????######### #?????????## ????? ?????? | | ?????????????????? ??#? ??#????????!???????????? | | ???????????????????? ?? ??#???????%???????????? | | ??????????????????????? T ?????????*???????????? | | ??????????????????????? #????#????#???????????? | | ??????????????????????? ?#?????????????????????? | | ??????????????????????? ???????????????????????? | | ??????????????????????# ##???????????????#?????? | | ??????????????????????# #?????????????? ???????? | | ??????????????????????# #??????????????????????? | +----------------------------------------------------+ Best States ------------- Heat Dissipation 73 Energy Generation 14 Energy Capacity 280 Matter Stores 300 Matter Capacity 300 Sight Range 16 Terrain Scan Range 16 Terrain Scan Density 10 Armor Coverage 225 Propulsion Shielding 33 Evasion (%) 40 Recoil Reduction 3 Item Schematics ----------------- None Robot Schematics ------------------ None Fabricated ------------ Nothing Alien Tech Used ----------------- None Achievements -------------- None Challenges ------------ None Game ------ Seed SignalExoskeletonScanner Manual? 0 Play Time 00:23:18 Cumulative 195.6 hours Start 2024.11.24 @ 17:58:02 End 2024.11.24 @ 18:51:26 Sessions 3 Manual Loads 0 Difficulty Rogue Special Mode None Game No. 130 Rogue 94 Adventurer 36 Explorer 0 Win Type - Total 3 Types 2/0/0/1/0/0/0/0/0 Lore% 56 Gallery% 66 Achievement% 57 Wizard Run 0 Options --------- Layout 1 ASCII 0 Keyboard 0 Movement Numpad Keybinds 0 Fullscreen 1 Font 48/Smallcaps Map View 50x35 Zoom Use 0% Tactical HUD 1 Map Filters NONE Filters NONE Steam 1 RUN: 7bf53032-8f76-4e1d-baa5-d2339eab4716